[Event "DVM U12W 2021"]
[Site "Willingen"]
[Date "2022.08.16"]
[Round "7"]
[White "Reetz, Shaila"]
[Black "Limmer, Maria"]
[Result "0-1"]
[ECO "D00"]
[WhiteElo "837"]
[BlackElo "767"]
[Annotator "NA RC"]
[PlyCount "76"]
[EventDate "2022.08.12"]
[EventType "team-tourn"]
[EventRounds "7"]
[EventCountry "GER"]
[SourceTitle "playchess.com"]
[Source "ChessBase"]
[SourceQuality "1"]
[TimeControl "40/5400+30:1800+30"]

1. d4 {[%emt 0:00:05]} d5 {[%emt 0:00:14]} 2. Nc3 {[%emt 0:00:11]} Nc6 {[%emt 0:00:10]} 3. Nf3 {[%emt 0:00:14]} Nf6 {[%emt 0:00:09]} 4. h3 {[%emt 0:00:29]} h6 {[%emt 0:00:29]} 5. e3 {[%emt 0:01:47]} Bf5 {[%emt 0:00:39]} 6. Bd3 {[%emt 0:01:15]} Bxd3 {[%emt 0:01:39]} 7. Qxd3 {[%emt 0:01:16]} a6 {[%emt 0:01:09]} 8. O-O {[%emt 0:02:21]} Qd7 {[%emt 0:00:01]} 9. e4 {[%emt 0:01:49]} Nb4 {[%emt 0:01:47]} 10. Qe2 {[%emt 0:01:23]} Qe6 {[%emt 0:01:14]} 11. e5 {[%emt 0:01:17]} Nd7 {[%emt 0:01:42]} 12. a3 {[%emt 0:01:50]} Nc6 {[%emt 0:00:38]} 13. Bf4 {[%emt 0:01:00]} Qf5 {[%emt 0:01:36]} 14. Qe3 {[%emt 0:02:51]} Qxc2 {[%emt 0:01:30]} 15. Ra2 {[%emt 0:00:39]} Qg6 {[%emt 0:00:30]} 16. Nxd5 {[%emt 0:00:30]} O-O-O {[%emt 0:00:40]} 17. b4 {[%emt 0:02:58]} e6 {[%emt 0:00:16]} 18. Nc3 {[%emt 0:01:05]} Be7 {[%emt 0:01:21]} 19. b5 {[%emt 0:02:35]} Ncb8 {[%emt 0:00:35]} 20. bxa6 {[%emt 0:00:51]} Nxa6 {[%emt 0:00:24]} 21. Nh4 {[%emt 0:00:53]} Bxh4 {[%emt 0:00:39]} 22. d5 {[%emt 0:00:33]} exd5 {[%emt 0:01:19]} 23. Nxd5 {[%emt 0:00:22]} Ndc5 {[%emt 0:01:30]} 24. Bg3 {[%emt 0:01:51]} Bg5 {[%emt 0:00:58]} 25. Qf3 {[%emt 0:01:07]} Qd3 {[%emt 0:00:55]} 26. Ne3 {[%emt 0:03:54]} Qg6 {[%emt 0:01:29]} 27. Nd5 {[%emt 0:00:59]} Nd3 {[%emt 0:02:15]} 28. Rb1 {[%emt 0:01:05]} Nac5 {[%emt 0:00:35]} 29. a4 {[%emt 0:01:55]} Rhe8 {[%emt 0:01:04]} 30. Rc2 {[%emt 0:00:32]} Na6 {[%emt 0:04:54]} 31. Rb3 {[%emt 0:04:02]} Nxe5 {[%emt 0:00:00]} 32. Bxe5 {[%emt 0:00:54]} Rxe5 {[%emt 0:00:31]} 33. Nc3 {[%emt 0:02:32]} Qxc2 {[%emt 0:00:00]} 34. Qxb7+ {[%emt 0:00:31]} Kd7 {[%emt 0:00:00]} 35. Qf3 {[%emt 0:01:53]} Re1+ {[%emt 0:00:00]} 36. Kh2 {[%emt 0:00:16]} Qd2 {[%emt 0:00:00]} 37. Qg4+ {[%emt 0:00:45]} Ke8 {[%emt 0:00:00]} 38. g3 {[%emt 0:00:27]} Qxf2# {[%emt 0:00:24]} 0-1

[Event "DVM U12W 2021"]
[Site "Willingen"]
[Date "2022.08.16"]
[Round "7"]
[White "Guliyeva, Zahra"]
[Black "Cao, Weiqi"]
[Result "0-1"]
[ECO "C00"]
[WhiteElo "834"]
[BlackElo "969"]
[Annotator "NA RC"]
[PlyCount "90"]
[EventDate "2022.08.12"]
[EventType "team-tourn"]
[EventRounds "7"]
[EventCountry "GER"]
[SourceTitle "playchess.com"]
[Source "ChessBase"]
[SourceQuality "1"]
[TimeControl "40/5400+30:1800+30"]

1. e4 {[%emt 0:00:03]} e6 {[%emt 0:00:00]} 2. Nf3 {[%emt 0:00:08]} d5 {[%emt 0:00:16]} 3. Nc3 {[%emt 0:00:26]} Nf6 {[%emt 0:01:26]} 4. exd5 {[%emt 0:00:17]} exd5 {[%emt 0:00:46]} 5. d3 {[%emt 0:00:40]} Be7 {[%emt 0:00:20]} 6. Bf4 {[%emt 0:00:20]} O-O {[%emt 0:00:14]} 7. d4 {[%emt 0:00:35]} Re8 {[%emt 0:00:46]} 8. Be2 {[%emt 0:03:04]} c6 {[%emt 0:00:49]} 9. Bxb8 {[%emt 0:00:12]} Rxb8 {[%emt 0:00:16]} 10. O-O {[%emt 0:00:39]} Qb6 {[%emt 0:00:30]} 11. Ne5 {[%emt 0:01:28]} Bd6 {[%emt 0:03:55]} 12. Bh5 {[%emt 0:01:17]} Bxe5 {[%emt 0:00:54]} 13. dxe5 {[%emt 0:01:16]} Nxh5 {[%emt 0:00:49]} 14. Qxh5 {[%emt 0:00:18]} Qxb2 {[%emt 0:01:11]} 15. Ne2 {[%emt 0:01:19]} Qxe5 {[%emt 0:00:46]} 16. Qf3 {[%emt 0:00:28]} Qxe2 {[%emt 0:00:28]} 17. Qxe2 {[%emt 0:00:13]} Rxe2 {[%emt 0:00:51]} 18. h3 {[%emt 0:00:36]} Rxc2 {[%emt 0:00:07]} 19. Rfe1 {[%emt 0:00:32]} Bd7 {[%emt 0:00:16]} 20. Re7 {[%emt 0:01:27]} Be6 {[%emt 0:00:22]} 21. Re1 {[%emt 0:01:11]} Rxa2 {[%emt 0:00:38]} 22. f4 {[%emt 0:00:31]} g6 {[%emt 0:00:21]} 23. Re3 {[%emt 0:00:50]} Kg7 {[%emt 0:00:13]} 24. Rg3 {[%emt 0:01:02]} Kf6 {[%emt 0:00:49]} 25. Rc7 {[%emt 0:01:47]} Ra1+ {[%emt 0:00:33]} 26. Kh2 {[%emt 0:00:36]} b5 {[%emt 0:00:12]} 27. Rxa7 {[%emt 0:00:11]} Rxa7 {[%emt 0:00:15]} 28. Rc3 {[%emt 0:00:21]} b4 {[%emt 0:00:27]} 29. Rxc6 {[%emt 0:00:10]} b3 {[%emt 0:00:05]} 30. Rc1 {[%emt 0:00:17]} b2 {[%emt 0:00:03]} 31. Rb1 {[%emt 0:00:10]} Ra1 {[%emt 0:00:25]} 32. Rxa1 {[%emt 0:00:07]} bxa1=Q {[%emt 0:00:10]} 33. Kg3 {[%emt 0:00:35]} g5 {[%emt 0:00:06]} 34. fxg5+ {[%emt 0:00:10]} Kxg5 {[%emt 0:00:06]} 35. h4+ {[%emt 0:00:09]} Kh5 {[%emt 0:00:09]} 36. Kf3 {[%emt 0:00:11]} Rb4 {[%emt 0:00:08]} 37. Kg3 {[%emt 0:00:19]} Qa3+ {[%emt 0:00:13]} 38. Kh2 {[%emt 0:00:11]} Rxh4+ {[%emt 0:00:05]} 39. Kg1 {[%emt 0:00:42]} Bh3 {[%emt 0:00:09]} 40. gxh3 {[%emt 0:00:12]} Rxh3 {[%emt 0:00:06]} 41. Kg2 {[%emt 0:30:14]} Qg3+ {[%emt 0:30:07]} 42. Kf1 {[%emt 0:00:38]} Qa3 {[%emt 0:00:09]} 43. Kf2 {[%emt 0:00:46]} Rb3 {[%emt 0:00:08]} 44. Ke2 {[%emt 0:00:00]} Qa2+ {[%emt 0:00:00]} 45. Kf1 {[%emt 0:00:00]} Rb1# 0-1

[Event "DVM U12W 2021"]
[Site "Willingen"]
[Date "2022.08.16"]
[Round "7"]
[White "Blome, Antonia"]
[Black "Grey, Paula"]
[Result "1-0"]
[ECO "D02"]
[WhiteElo "823"]
[BlackElo "854"]
[Annotator "NA RC"]
[PlyCount "95"]
[EventDate "2022.08.12"]
[EventType "team-tourn"]
[EventRounds "7"]
[EventCountry "GER"]
[SourceTitle "playchess.com"]
[Source "ChessBase"]
[SourceQuality "1"]
[TimeControl "40/5400+30:1800+30"]

1. d4 {[%emt 0:00:08]} d5 {[%emt 0:00:00]} 2. Bf4 {[%emt 0:01:01]} Bf5 {[%emt 0:00:00]} 3. Nf3 {[%emt 0:00:58]} Nc6 {[%emt 0:00:05]} 4. e3 {[%emt 0:01:10]} Nf6 {[%emt 0:00:07]} 5. h3 {[%emt 0:01:24]} Nb4 {[%emt 0:00:39]} 6. Bd3 {[%emt 0:01:38]} Nxd3+ {[%emt 0:00:08]} 7. cxd3 {[%emt 0:01:32]} e6 {[%emt 0:01:01]} 8. a3 {[%emt 0:00:43]} Bd6 {[%emt 0:00:39]} 9. Ne5 {[%emt 0:01:21]} Qe7 {[%emt 0:02:04]} 10. O-O {[%emt 0:01:07]} O-O-O {[%emt 0:01:02]} 11. Nc3 {[%emt 0:01:55]} Rhg8 {[%emt 0:01:45]} 12. Re1 {[%emt 0:01:25]} Rde8 {[%emt 0:00:32]} 13. e4 {[%emt 0:00:51]} dxe4 {[%emt 0:00:14]} 14. Nxe4 {[%emt 0:03:13]} Nd5 {[%emt 0:00:56]} 15. Bg3 {[%emt 0:02:15]} f6 {[%emt 0:01:33]} 16. Nf3 {[%emt 0:01:15]} Bxg3 {[%emt 0:00:08]} 17. fxg3 {[%emt 0:00:42]} e5 {[%emt 0:00:22]} 18. Qb3 {[%emt 0:01:34]} Qe6 {[%emt 0:00:33]} 19. Nc5 {[%emt 0:01:11]} Qf7 {[%emt 0:00:17]} 20. Qxb7+ {[%emt 0:01:01]} Kd8 {[%emt 0:00:28]} 21. dxe5 {[%emt 0:06:45]} Ke7 {[%emt 0:00:19]} 22. e6 {[%emt 0:02:08]} Bxe6 {[%emt 0:00:07]} 23. Nxe6 {[%emt 0:01:46]} Qxe6 {[%emt 0:00:05]} 24. Rxe6+ {[%emt 0:00:21]} Kxe6 {[%emt 0:00:14]} 25. Qc6+ {[%emt 0:01:21]} Ke7 {[%emt 0:00:04]} 26. Qxd5 {[%emt 0:00:43]} Kf8 {[%emt 0:00:16]} 27. Rc1 {[%emt 0:00:56]} Rc8 {[%emt 0:00:13]} 28. Rxc7 {[%emt 0:01:38]} Rxc7 {[%emt 0:00:07]} 29. Qd8+ {[%emt 0:00:22]} Kf7 {[%emt 0:00:04]} 30. Qxc7+ {[%emt 0:01:07]} Kg6 {[%emt 0:00:03]} 31. d4 {[%emt 0:02:49]} Re8 {[%emt 0:00:09]} 32. d5 {[%emt 0:01:20]} Ra8 {[%emt 0:00:06]} 33. d6 {[%emt 0:00:33]} a5 {[%emt 0:00:08]} 34. d7 {[%emt 0:00:20]} a4 35. d8=Q {[%emt 1:03:35]} Rxd8 {[%emt 0:01:03]} 36. Qxd8 {[%emt 0:00:00]} Kh6 {[%emt 0:00:00]} 37. Qa5 {[%emt 0:00:00]} g5 {[%emt 0:00:00]} 38. Qxa4 {[%emt 0:00:00]} f5 {[%emt 0:00:00]} 39. Qc6+ {[%emt 0:00:00]} Kg7 {[%emt 0:00:03]} 40. Kf2 {[%emt 0:00:00]} g4 {[%emt 0:00:04]} 41. hxg4 {[%emt 0:00:00]} fxg4 {[%emt 0:30:07]} 42. Nh4 {[%emt 0:00:00]} Kh8 {[%emt 0:00:07]} 43. Qb7 {[%emt 0:00:00]} Kg8 {[%emt 0:00:02]} 44. Ke3 {[%emt 0:00:00]} Kf8 {[%emt 0:00:03]} 45. Ke4 {[%emt 0:00:00]} Ke8 {[%emt 0:00:04]} 46. Ke5 {[%emt 0:00:00]} h6 {[%emt 0:00:04]} 47. Ke6 {[%emt 0:00:00]} Kf8 48. Qf7# {[%emt 0:06:29]} 1-0

[Event "DVM U12W 2021"]
[Site "Willingen"]
[Date "2022.08.16"]
[Round "7"]
[White "Borck, Elena"]
[Black "Xiao, Karoline"]
[Result "1/2-1/2"]
[ECO "B13"]
[WhiteElo "739"]
[BlackElo "965"]
[Annotator "NA RC"]
[PlyCount "51"]
[EventDate "2022.08.12"]
[EventType "team-tourn"]
[EventRounds "7"]
[EventCountry "GER"]
[SourceTitle "playchess.com"]
[Source "ChessBase"]
[SourceQuality "1"]
[TimeControl "40/5400+30:1800+30"]

1. e4 {[%emt 0:00:05]} c6 {[%emt 0:00:53]} 2. Nc3 {[%emt 0:00:16]} d5 {[%emt 0:00:45]} 3. exd5 {[%emt 0:00:11]} cxd5 {[%emt 0:00:25]} 4. d4 {[%emt 0:00:15]} Nf6 {[%emt 0:00:46]} 5. Nf3 {[%emt 0:00:16]} Bf5 {[%emt 0:02:21]} 6. Bf4 {[%emt 0:00:53]} Nc6 {[%emt 0:01:03]} 7. Bb5 {[%emt 0:00:29]} a6 {[%emt 0:00:53]} 8. Bd3 {[%emt 0:01:09]} Bg6 {[%emt 0:01:12]} 9. Ne5 {[%emt 0:06:27]} Bxd3 {[%emt 0:03:00]} 10. Nxc6 {[%emt 0:00:36]} bxc6 {[%emt 0:01:29]} 11. Qxd3 {[%emt 0:01:43]} e6 {[%emt 0:01:02]} 12. O-O {[%emt 0:00:38]} Bd6 {[%emt 0:02:21]} 13. Bxd6 {[%emt 0:00:13]} Qxd6 {[%emt 0:01:20]} 14. Rfe1 {[%emt 0:06:27]} O-O {[%emt 0:03:12]} 15. Na4 {[%emt 0:07:59]} Ne4 {[%emt 0:06:34]} 16. c4 {[%emt 0:06:17]} Rac8 {[%emt 0:01:36]} 17. c5 {[%emt 0:01:53]} Qe7 {[%emt 0:02:12]} 18. Nb6 {[%emt 0:04:26]} Rb8 {[%emt 0:04:29]} 19. Qxa6 {[%emt 0:08:25]} Nf6 {[%emt 0:04:48]} 20. b4 {[%emt 0:01:54]} Qc7 {[%emt 0:01:45]} 21. Rab1 {[%emt 0:02:13]} Nd7 {[%emt 0:00:41]} 22. Nxd7 {[%emt 0:00:12]} Qxd7 {[%emt 0:00:44]} 23. a4 {[%emt 0:01:41]} Ra8 {[%emt 0:03:38]} 24. Qd3 {[%emt 0:00:37]} Rxa4 {[%emt 0:01:46]} 25. b5 {[%emt 0:05:43]} h6 26. b6 {[%emt 1:52:22]} 1/2-1/2

[Event "DVM U12W 2021"]
[Site "Willingen"]
[Date "2022.08.16"]
[Round "7"]
[White "Piffczyk, Sandra"]
[Black "Marrufo, Leandra"]
[Result "1-0"]
[ECO "C48"]
[WhiteElo "704"]
[BlackElo "701"]
[Annotator "NA RC"]
[PlyCount "123"]
[EventDate "2022.08.12"]
[EventType "team-tourn"]
[EventRounds "7"]
[EventCountry "GER"]
[SourceTitle "playchess.com"]
[Source "ChessBase"]
[SourceQuality "1"]
[TimeControl "40/5400+30:1800+30"]

1. e4 {[%emt 0:00:12]} e5 {[%emt 0:00:00]} 2. Nf3 {[%emt 0:00:12]} Nc6 {[%emt 0:00:00]} 3. Nc3 {[%emt 0:00:10]} Nf6 {[%emt 0:00:16]} 4. Bb5 {[%emt 0:00:29]} Nd4 {[%emt 0:00:41]} 5. Nxe5 {[%emt 0:00:23]} Qe7 {[%emt 0:00:46]} 6. Nf3 {[%emt 0:01:18]} Nxb5 {[%emt 0:00:24]} 7. Nxb5 {[%emt 0:00:47]} Qxe4+ {[%emt 0:00:20]} 8. Qe2 {[%emt 0:00:16]} Qxe2+ {[%emt 0:00:37]} 9. Kxe2 {[%emt 0:02:04]} Nd5 {[%emt 0:09:26]} 10. Re1 {[%emt 0:00:48]} Be7 {[%emt 0:00:40]} 11. Kf1 {[%emt 0:00:44]} O-O {[%emt 0:01:16]} 12. Re5 {[%emt 0:01:35]} c6 {[%emt 0:01:20]} 13. Nc3 {[%emt 0:03:59]} Bd6 {[%emt 0:02:20]} 14. Re1 {[%emt 0:01:19]} b6 {[%emt 0:02:37]} 15. d3 {[%emt 0:01:09]} Ba6 {[%emt 0:02:25]} 16. Bg5 {[%emt 0:01:51]} Nb4 {[%emt 0:04:37]} 17. Rec1 {[%emt 0:00:44]} f6 {[%emt 0:01:33]} 18. Be3 {[%emt 0:01:29]} Rfe8 {[%emt 0:01:28]} 19. Kg1 {[%emt 0:00:49]} Re7 {[%emt 0:02:44]} 20. a3 {[%emt 0:09:09]} Nd5 {[%emt 0:03:40]} 21. Re1 {[%emt 0:06:20]} f5 {[%emt 0:03:54]} 22. Bg5 {[%emt 0:01:52]} Rxe1+ {[%emt 0:01:13]} 23. Rxe1 {[%emt 0:00:58]} b5 {[%emt 0:03:49]} 24. Nxd5 {[%emt 0:01:02]} cxd5 {[%emt 0:04:06]} 25. Be7 {[%emt 0:00:25]} Re8 {[%emt 0:01:44]} 26. Bxd6 {[%emt 0:00:47]} Rxe1+ {[%emt 0:00:14]} 27. Nxe1 {[%emt 0:01:13]} Bb7 {[%emt 0:00:48]} 28. Nf3 {[%emt 0:00:26]} d4 {[%emt 0:03:41]} 29. Nxd4 {[%emt 0:00:44]} g6 {[%emt 0:00:25]} 30. Nxb5 {[%emt 0:00:19]} a6 {[%emt 0:00:23]} 31. Nc7 {[%emt 0:00:46]} g5 {[%emt 0:00:33]} 32. c4 {[%emt 0:00:29]} h5 {[%emt 0:00:37]} 33. Nd5 {[%emt 0:01:10]} Bxd5 {[%emt 0:00:15]} 34. cxd5 {[%emt 0:00:54]} Kf7 {[%emt 0:00:31]} 35. Bb8 {[%emt 0:00:20]} Ke7 {[%emt 0:00:34]} 36. f3 {[%emt 0:00:33]} g4 {[%emt 0:00:19]} 37. fxg4 {[%emt 0:00:14]} fxg4 {[%emt 0:00:44]} 38. b4 {[%emt 0:00:11]} Kd8 {[%emt 0:00:24]} 39. Kf2 {[%emt 0:00:25]} Kc8 {[%emt 0:00:26]} 40. Be5 {[%emt 0:00:36]} Kb7 {[%emt 0:00:22]} 41. Ke2 {[%emt 0:30:02]} Kb6 {[%emt 0:30:25]} 42. a4 {[%emt 0:00:49]} a5 {[%emt 0:00:16]} 43. bxa5+ {[%emt 0:00:11]} Kxa5 {[%emt 0:00:25]} 44. Ke3 {[%emt 0:00:58]} Kxa4 {[%emt 0:00:24]} 45. Kd4 {[%emt 0:00:15]} Kb5 {[%emt 0:00:32]} 46. Bf6 {[%emt 0:00:19]} Kb6 {[%emt 0:00:22]} 47. Ke5 {[%emt 0:00:16]} Kc7 48. Be7 {[%emt 1:40:03]} Kc8 {[%emt 0:01:47]} 49. Kd6 {[%emt 0:00:00]} Kb7 {[%emt 0:00:16]} 50. Kxd7 {[%emt 0:00:00]} Kb6 {[%emt 0:00:23]} 51. d6 {[%emt 0:00:00]} Kc5 {[%emt 0:00:10]} 52. Ke6 {[%emt 0:00:00]} Kd4 {[%emt 0:00:11]} 53. d7 {[%emt 0:00:00]} Ke3 54. d8=Q {[%emt 0:05:17]} Kf2 {[%emt 0:01:26]} 55. Qh8 {[%emt 0:00:00]} Kxg2 {[%emt 0:00:14]} 56. Qxh5 {[%emt 0:00:00]} Kf3 {[%emt 0:00:20]} 57. h3 {[%emt 0:00:00]} Kg3 {[%emt 0:00:00]} 58. Qxg4+ {[%emt 0:00:00]} Kh2 {[%emt 0:00:19]} 59. Kf5 {[%emt 0:00:00]} Kh1 {[%emt 0:00:11]} 60. Qg8 {[%emt 0:00:00]} Kh2 {[%emt 0:00:10]} 61. Kf4 {[%emt 0:00:00]} Kxh3 {[%emt 0:00:17]} 62. Qg3# 1-0